[Event "Early-Titled-Tuesday-Blitz-March-19-2024"]
[Site "Chess.com"]
[Date "2024.03.19"]
[Round "3"]
[White "Matols"]
[Black "NtcPou"]
[Result "1-0"]
[WhiteElo "2347"]
[BlackElo "1988"]
[TimeControl "180+1"]
[EndTime "8:27:43 PDT"]
[Termination "Matols won by resignation"]

1. d4 {[%clk 0:02:58.8]} 1... d5 {[%clk 0:02:59.6]} 2. c4 {[%clk 0:02:58]} 2...
c6 {[%clk 0:02:59.1]} 3. Nf3 {[%clk 0:02:57.3]} 3... Nf6 {[%clk 0:02:58.9]} 4.
Qb3 {[%clk 0:02:56.7]} 4... a6 {[%clk 0:02:57.4]} 5. g3 {[%clk 0:02:54.5]} 5...
b5 {[%clk 0:02:56.1]} 6. c5 {[%clk 0:02:49.5]} 6... Bf5 {[%clk 0:02:51.2]} 7.
Bg2 {[%clk 0:02:46.3]} 7... Nbd7 {[%clk 0:02:50.7]} 8. Bf4 {[%clk 0:02:41.2]}
8... h6 {[%clk 0:02:49.9]} 9. h4 {[%clk 0:02:36.5]} 9... Ne4 {[%clk 0:02:48.5]}
10. Nbd2 {[%clk 0:02:30.5]} 10... e6 {[%clk 0:02:47.8]} 11. h5 {[%clk
0:02:07.9]} 11... Be7 {[%clk 0:02:46]} 12. Qe3 {[%clk 0:02:00.7]} 12... Ndf6
{[%clk 0:02:38.8]} 13. Ne5 {[%clk 0:01:54.9]} 13... Rc8 {[%clk 0:02:23.5]} 14.
Nxe4 {[%clk 0:01:45.6]} 14... Bxe4 {[%clk 0:02:21.5]} 15. f3 {[%clk 0:01:35]}
15... Bh7 {[%clk 0:02:20.7]} 16. Bh3 {[%clk 0:01:29.8]} 16... Nd7 {[%clk
0:02:16.7]} 17. Nxf7 {[%clk 0:01:25.2]} 17... Kxf7 {[%clk 0:02:14.7]} 18. Qxe6+
{[%clk 0:01:23.9]} 18... Ke8 {[%clk 0:02:05.3]} 19. Bd6 {[%clk 0:01:19.5]} 19...
Bg8 {[%clk 0:02:03.9]} 20. Qg6+ {[%clk 0:01:10.1]} 20... Bf7 {[%clk 0:02:03.8]}
21. Qxg7 {[%clk 0:01:07]} 21... Rg8 {[%clk 0:02:04]} 22. Qxh6 {[%clk 0:01:03.6]}
22... Bxd6 {[%clk 0:02:04.2]} 23. Qxd6 {[%clk 0:00:58.7]} 23... Bxh5 {[%clk
0:02:04.3]} 24. Bxd7+ {[%clk 0:00:52.9]} 24... Qxd7 {[%clk 0:02:03]} 25. Qxd7+
{[%clk 0:00:52.5]} 25... Kxd7 {[%clk 0:02:03.1]} 26. Rxh5 {[%clk 0:00:52.9]}
26... Rxg3 {[%clk 0:02:03.6]} 27. Kf2 {[%clk 0:00:52.1]} 27... Rcg8 {[%clk
0:02:03.6]} 28. Rh7+ {[%clk 0:00:46.8]} 28... Ke6 {[%clk 0:02:03]} 29. Rah1
{[%clk 0:00:41.9]} 29... Rg2+ {[%clk 0:02:03]} 30. Ke3 {[%clk 0:00:41.1]} 30...
R8g6 {[%clk 0:02:02]} 31. R1h6 {[%clk 0:00:39.1]} 31... Kf5 {[%clk 0:01:52.8]}
32. Rf7+ {[%clk 0:00:34.4]} 32... Ke6 {[%clk 0:01:50.1]} 33. Rxg6+ {[%clk
0:00:32.5]} 33... Rxg6 {[%clk 0:01:51]} 34. Ra7 {[%clk 0:00:29.8]} 34... Kf5
{[%clk 0:01:51.1]} 35. Rxa6 {[%clk 0:00:29.4]} 35... Re6+ {[%clk 0:01:50.3]} 36.
Kd3 {[%clk 0:00:29.1]} 36... Kf4 {[%clk 0:01:49.3]} 37. Ra7 {[%clk 0:00:21.7]}
37... Re3+ {[%clk 0:01:48.4]} 38. Kd2 {[%clk 0:00:21.7]} 38... Re6 {[%clk
0:01:49.3]} 39. Rf7+ {[%clk 0:00:20.2]} 39... Kg5 {[%clk 0:01:49.5]} 40. Kd3
{[%clk 0:00:17.1]} 40... Kg6 {[%clk 0:01:48.5]} 41. Rf8 {[%clk 0:00:16.7]} 41...
Kg5 {[%clk 0:01:48.7]} 42. f4+ {[%clk 0:00:15.7]} 42... Kg4 {[%clk 0:01:48.9]}
43. f5 {[%clk 0:00:15.8]} 43... Re4 {[%clk 0:01:47.7]} 44. f6 {[%clk 0:00:15.9]}
44... Rf4 {[%clk 0:01:47.9]} 45. f7 {[%clk 0:00:16.1]} 45... Kf5 {[%clk
0:01:42.9]} 46. Rg8 {[%clk 0:00:15]} 1-0

[Event "Early-Titled-Tuesday-Blitz-March-19-2024"]
[Site "Chess.com"]
[Date "2024.03.19"]
[Round "3"]
[White "Alexei_Gubajdullin"]
[Black "Kotofeyca"]
[Result "1-0"]
[WhiteElo "2659"]
[BlackElo "2452"]
[TimeControl "180+1"]
[EndTime "8:27:46 PDT"]
[Termination "Alexei_Gubajdullin won by resignation"]

1. Nf3 {[%clk 0:02:54.6]} 1... d5 {[%clk 0:02:59.6]} 2. g3 {[%clk 0:02:54.5]}
2... c6 {[%clk 0:03:00]} 3. Bg2 {[%clk 0:02:53.6]} 3... Bg4 {[%clk 0:03:00.6]}
4. O-O {[%clk 0:02:53.4]} 4... Nd7 {[%clk 0:03:01.1]} 5. d3 {[%clk 0:02:53]}
5... e5 {[%clk 0:03:01.1]} 6. Nbd2 {[%clk 0:02:50.9]} 6... Ngf6 {[%clk
0:03:01.2]} 7. e4 {[%clk 0:02:49.4]} 7... dxe4 {[%clk 0:03:01.4]} 8. dxe4 {[%clk
0:02:46.7]} 8... Bc5 {[%clk 0:03:01.9]} 9. h3 {[%clk 0:02:45.9]} 9... Bh5 {[%clk
0:03:02.5]} 10. Qe2 {[%clk 0:02:42.5]} 10... Qe7 {[%clk 0:03:02.5]} 11. a3
{[%clk 0:02:40.7]} 11... a5 {[%clk 0:02:58.9]} 12. b3 {[%clk 0:02:40.3]} 12...
O-O {[%clk 0:02:54]} 13. Bb2 {[%clk 0:02:39.8]} 13... Rfe8 {[%clk 0:02:47.6]}
14. Nc4 {[%clk 0:02:38.9]} 14... Bxf3 {[%clk 0:02:24.7]} 15. Qxf3 {[%clk
0:02:34.6]} 15... a4 {[%clk 0:02:15.7]} 16. b4 {[%clk 0:02:32.6]} 16... Bd4
{[%clk 0:02:15.7]} 17. c3 {[%clk 0:02:30.2]} 17... Ba7 {[%clk 0:02:13.6]} 18.
Ne3 {[%clk 0:02:23.9]} 18... Bxe3 {[%clk 0:02:00.3]} 19. Qxe3 {[%clk 0:02:18.1]}
19... b5 {[%clk 0:02:00.2]} 20. c4 {[%clk 0:02:15.9]} 20... bxc4 {[%clk
0:01:54.3]} 21. Rfc1 {[%clk 0:02:15.2]} 21... c5 {[%clk 0:01:54.6]} 22. Rxc4
{[%clk 0:02:09.9]} 22... cxb4 {[%clk 0:01:53]} 23. Rxb4 {[%clk 0:02:09.4]} 23...
Nc5 {[%clk 0:01:45.9]} 24. Rc1 {[%clk 0:02:03.5]} 24... Nb3 {[%clk 0:01:41.5]}
25. Rc6 {[%clk 0:02:02]} 25... Red8 {[%clk 0:01:35.2]} 26. Bc3 {[%clk
0:01:46.1]} 26... Qd7 {[%clk 0:00:29.7]} 27. Rbb6 {[%clk 0:01:43.6]} 27... Nd4
{[%clk 0:00:28.3]} 28. Rd6 {[%clk 0:01:33.7]} 28... Qxd6 {[%clk 0:00:20.6]} 29.
Rxd6 {[%clk 0:01:32.3]} 29... Rxd6 {[%clk 0:00:21.5]} 30. f4 {[%clk 0:01:28]}
30... Rc8 {[%clk 0:00:17.5]} 31. Bb4 {[%clk 0:01:25.4]} 31... Rdc6 {[%clk
0:00:11.5]} 32. fxe5 {[%clk 0:01:16.4]} 32... Rc1+ {[%clk 0:00:11.4]} 33. Kh2
{[%clk 0:01:15.8]} 33... Nc2 {[%clk 0:00:10.6]} 34. Qxc1 {[%clk 0:01:15]} 1-0

[Event "Early-Titled-Tuesday-Blitz-March-19-2024"]
[Site "Chess.com"]
[Date "2024.03.19"]
[Round "3"]
[White "gpsji27"]
[Black "Ural_bogatyr"]
[Result "1-0"]
[WhiteElo "2364"]
[BlackElo "2593"]
[TimeControl "180+1"]
[EndTime "8:27:48 PDT"]
[Termination "gpsji27 won by resignation"]

1. d4 {[%clk 0:03:00.9]} 1... Nf6 {[%clk 0:02:49.9]} 2. Nf3 {[%clk 0:02:59.6]}
2... d5 {[%clk 0:02:44.2]} 3. Bg5 {[%clk 0:02:59.3]} 3... c5 {[%clk 0:02:43.8]}
4. e3 {[%clk 0:02:51.3]} 4... Nc6 {[%clk 0:02:41.7]} 5. c3 {[%clk 0:02:46.8]}
5... Bf5 {[%clk 0:02:32.6]} 6. Nbd2 {[%clk 0:02:43.2]} 6... e6 {[%clk
0:02:32.5]} 7. Ne5 {[%clk 0:02:34.7]} 7... Be7 {[%clk 0:02:11.7]} 8. Bb5 {[%clk
0:02:23.5]} 8... Qb6 {[%clk 0:02:05.4]} 9. Qa4 {[%clk 0:02:15.9]} 9... Rc8
{[%clk 0:02:04.8]} 10. Ndf3 {[%clk 0:01:53.9]} 10... O-O {[%clk 0:01:55.7]} 11.
Bxf6 {[%clk 0:01:52.8]} 11... gxf6 {[%clk 0:01:45]} 12. Nd7 {[%clk 0:01:47.1]}
12... Qc7 {[%clk 0:01:44.8]} 13. Nxf8 {[%clk 0:01:44.8]} 13... Bxf8 {[%clk
0:01:45.7]} 14. Bxc6 {[%clk 0:01:29.3]} 14... bxc6 {[%clk 0:01:44.8]} 15. dxc5
{[%clk 0:01:28.4]} 15... Bxc5 {[%clk 0:01:43.8]} 16. O-O {[%clk 0:01:27.5]}
16... e5 {[%clk 0:01:40.7]} 17. Qh4 {[%clk 0:01:25]} 17... Kg7 {[%clk
0:01:39.8]} 18. Qg3+ {[%clk 0:01:23.2]} 18... Bg6 {[%clk 0:01:39.4]} 19. Nh4
{[%clk 0:01:21.3]} 19... Bd6 {[%clk 0:01:33.6]} 20. Nf5+ {[%clk 0:01:19.7]}
20... Kh8 {[%clk 0:01:32.4]} 21. Qh4 {[%clk 0:01:03.4]} 21... Qd8 {[%clk
0:01:16.5]} 22. Nxd6 {[%clk 0:00:59.1]} 22... Qxd6 {[%clk 0:01:17.4]} 23. f4
{[%clk 0:00:57.5]} 23... exf4 {[%clk 0:01:07.5]} 24. exf4 {[%clk 0:00:58.4]}
24... Be4 {[%clk 0:01:06.3]} 25. Rad1 {[%clk 0:00:55.6]} 25... Rg8 {[%clk
0:01:04.6]} 26. Rf2 {[%clk 0:00:51.7]} 26... Rg6 {[%clk 0:01:00.5]} 27. f5
{[%clk 0:00:48.1]} 27... Rg5 {[%clk 0:00:59.7]} 28. Qxe4 {[%clk 0:00:31.1]} 1-0

[Event "Early-Titled-Tuesday-Blitz-March-19-2024"]
[Site "Chess.com"]
[Date "2024.03.19"]
[Round "3"]
[White "MasterKroket"]
[Black "Defend1r"]
[Result "0-1"]
[WhiteElo "2502"]
[BlackElo "2729"]
[TimeControl "180+1"]
[EndTime "8:27:49 PDT"]
[Termination "Defend1r won on time"]

1. e4 {[%clk 0:02:42.5]} 1... c5 {[%clk 0:02:59.3]} 2. Nf3 {[%clk 0:02:42.3]}
2... d6 {[%clk 0:02:59.5]} 3. d4 {[%clk 0:02:42.7]} 3... cxd4 {[%clk 0:03:00.4]}
4. Nxd4 {[%clk 0:02:43.1]} 4... Nf6 {[%clk 0:03:01.1]} 5. Nc3 {[%clk 0:02:43.7]}
5... a6 {[%clk 0:03:01.6]} 6. Be3 {[%clk 0:02:44.1]} 6... e5 {[%clk 0:03:02.2]}
7. Nb3 {[%clk 0:02:44.3]} 7... Be7 {[%clk 0:03:02.5]} 8. f3 {[%clk 0:02:44.5]}
8... Be6 {[%clk 0:03:01.6]} 9. Qd2 {[%clk 0:02:44.9]} 9... O-O {[%clk
0:03:02.3]} 10. g4 {[%clk 0:02:44.9]} 10... b5 {[%clk 0:03:02.7]} 11. O-O-O
{[%clk 0:02:42.5]} 11... Nbd7 {[%clk 0:03:02.2]} 12. g5 {[%clk 0:02:28.3]} 12...
Nh5 {[%clk 0:03:02.3]} 13. Rg1 {[%clk 0:02:29]} 13... Nb6 {[%clk 0:02:28.1]} 14.
Nd5 {[%clk 0:02:09.8]} 14... Nxd5 {[%clk 0:02:25.6]} 15. exd5 {[%clk 0:02:10.7]}
15... Bf5 {[%clk 0:02:26.3]} 16. Bd3 {[%clk 0:02:08.7]} 16... Bxd3 {[%clk
0:02:26.2]} 17. Qxd3 {[%clk 0:02:08.5]} 17... g6 {[%clk 0:02:22]} 18. Nd2 {[%clk
0:02:01.7]} 18... f6 {[%clk 0:02:10.2]} 19. gxf6 {[%clk 0:01:52.5]} 19... Rxf6
{[%clk 0:02:08]} 20. Ne4 {[%clk 0:01:30.4]} 20... Rxf3 {[%clk 0:02:02.9]} 21.
Qe2 {[%clk 0:01:31]} 21... Rf5 {[%clk 0:01:47.3]} 22. Rdf1 {[%clk 0:01:26.6]}
22... Nf4 {[%clk 0:01:46.5]} 23. Qg4 {[%clk 0:01:15.5]} 23... Qf8 {[%clk
0:01:45]} 24. Bxf4 {[%clk 0:01:06.3]} 24... exf4 {[%clk 0:01:45.9]} 25. h4
{[%clk 0:00:51.3]} 25... Kh8 {[%clk 0:01:29]} 26. Ng5 {[%clk 0:00:50.9]} 26...
Bxg5 {[%clk 0:01:24.8]} 27. hxg5 {[%clk 0:00:51.5]} 27... Re8 {[%clk 0:01:11.4]}
28. Rh1 {[%clk 0:00:40.9]} 28... f3 {[%clk 0:01:08.3]} 29. Rf2 {[%clk
0:00:24.6]} 29... Qe7 {[%clk 0:01:01.8]} 30. Rfh2 {[%clk 0:00:05.2]} 30... Qe3+
{[%clk 0:01:01.2]} 31. Kd1 {[%clk 0:00:03.2]} 31... Rxd5+ {[%clk 0:01:01.3]} 0-1

[Event "Early-Titled-Tuesday-Blitz-March-19-2024"]
[Site "Chess.com"]
[Date "2024.03.19"]
[Round "3"]
[White "Hikaru"]
[Black "moro182"]
[Result "1-0"]
[WhiteElo "3287"]
[BlackElo "2831"]
[TimeControl "180+1"]
[EndTime "8:27:50 PDT"]
[Termination "Hikaru won by resignation"]

1. Nf3 {[%clk 0:03:00.9]} 1... g6 {[%clk 0:03:00.3]} 2. e4 {[%clk 0:03:00.2]}
2... Bg7 {[%clk 0:03:00.9]} 3. d4 {[%clk 0:03:00.5]} 3... d6 {[%clk 0:03:01.5]}
4. Bc4 {[%clk 0:03:00.5]} 4... Nf6 {[%clk 0:03:01.5]} 5. Qe2 {[%clk 0:03:00.7]}
5... O-O {[%clk 0:03:01.1]} 6. e5 {[%clk 0:02:58.7]} 6... dxe5 {[%clk
0:03:00.9]} 7. dxe5 {[%clk 0:02:59.6]} 7... Nd5 {[%clk 0:03:00.9]} 8. O-O {[%clk
0:02:59.3]} 8... Be6 {[%clk 0:02:58.2]} 9. Ng5 {[%clk 0:02:47.4]} 9... c6 {[%clk
0:02:30.2]} 10. Nxe6 {[%clk 0:02:45.6]} 10... fxe6 {[%clk 0:02:31.1]} 11. g3
{[%clk 0:02:38.5]} 11... Nd7 {[%clk 0:02:27.6]} 12. f4 {[%clk 0:02:38.3]} 12...
b5 {[%clk 0:02:06.3]} 13. Bb3 {[%clk 0:02:37.7]} 13... g5 {[%clk 0:01:50.1]} 14.
c3 {[%clk 0:02:27.1]} 14... gxf4 {[%clk 0:01:45.1]} 15. gxf4 {[%clk 0:02:26.7]}
15... Kh8 {[%clk 0:00:53.4]} 16. Na3 {[%clk 0:02:22.1]} 16... Rg8 {[%clk
0:00:47]} 17. Kh1 {[%clk 0:02:21.9]} 17... Qf8 {[%clk 0:00:45.4]} 18. Bc2 {[%clk
0:02:11.7]} 18... Qf7 {[%clk 0:00:45.5]} 19. Bd2 {[%clk 0:02:09.1]} 19... Raf8
{[%clk 0:00:45.3]} 20. Rf3 {[%clk 0:01:57.8]} 20... Bh6 {[%clk 0:00:38.1]} 21.
Raf1 {[%clk 0:01:53.6]} 21... Qh5 {[%clk 0:00:29.2]} 22. Bd1 {[%clk 0:01:53.7]}
22... Qh4 {[%clk 0:00:24.6]} 23. Qf2 {[%clk 0:01:48]} 23... Qxf2 {[%clk
0:00:24.2]} 24. R3xf2 {[%clk 0:01:42.5]} 24... Rf7 {[%clk 0:00:11.6]} 25. Nc2
{[%clk 0:01:39.1]} 25... Nc5 {[%clk 0:00:11]} 26. Rf3 {[%clk 0:01:29.1]} 26...
Ne4 {[%clk 0:00:10.6]} 27. Bc1 {[%clk 0:01:29.7]} 27... Rgf8 {[%clk 0:00:10.9]}
28. Nd4 {[%clk 0:01:28.3]} 28... Nxf4 {[%clk 0:00:07.4]} 29. Bc2 {[%clk
0:01:18.1]} 29... Nc5 {[%clk 0:00:05.2]} 30. b4 {[%clk 0:01:07.3]} 30... Nd7
{[%clk 0:00:05]} 31. Nxe6 {[%clk 0:01:08]} 31... Nxe5 {[%clk 0:00:04.7]} 32.
Rxf4 {[%clk 0:01:07.6]} 32... Bxf4 {[%clk 0:00:04.3]} 33. Bxf4 {[%clk
0:01:06.1]} 33... Rxf4 {[%clk 0:00:02.9]} 1-0

[Event "Early-Titled-Tuesday-Blitz-March-19-2024"]
[Site "Chess.com"]
[Date "2024.03.19"]
[Round "3"]
[White "kassablanca"]
[Black "Casper"]
[Result "0-1"]
[WhiteElo "2765"]
[BlackElo "2497"]
[TimeControl "180+1"]
[EndTime "8:27:50 PDT"]
[Termination "Casper won by checkmate"]

1. e3 {[%clk 0:03:00.9]} 1... d5 {[%clk 0:02:57.9]} 2. Nf3 {[%clk 0:03:00.5]}
2... Bg4 {[%clk 0:02:58.1]} 3. d4 {[%clk 0:02:58.7]} 3... Nf6 {[%clk 0:02:58.4]}
4. c4 {[%clk 0:02:58.9]} 4... e6 {[%clk 0:02:59]} 5. Nc3 {[%clk 0:02:56.8]} 5...
Nc6 {[%clk 0:02:58.7]} 6. h3 {[%clk 0:02:56.3]} 6... Bh5 {[%clk 0:02:58.4]} 7.
Be2 {[%clk 0:02:48.7]} 7... dxc4 {[%clk 0:02:54.2]} 8. O-O {[%clk 0:02:44.6]}
8... Bd6 {[%clk 0:02:53.8]} 9. e4 {[%clk 0:02:34.7]} 9... Bxf3 {[%clk 0:02:51]}
10. gxf3 {[%clk 0:02:33.1]} 10... Nxd4 {[%clk 0:02:50.2]} 11. f4 {[%clk
0:02:21.4]} 11... e5 {[%clk 0:02:08.7]} 12. Bxc4 {[%clk 0:02:10.7]} 12... c6
{[%clk 0:02:03.9]} 13. fxe5 {[%clk 0:02:06.3]} 13... Bxe5 {[%clk 0:02:04.8]} 14.
f4 {[%clk 0:02:03.4]} 14... Bc7 {[%clk 0:02:04.6]} 15. e5 {[%clk 0:02:02.2]}
15... Ng8 {[%clk 0:02:03.1]} 16. Be3 {[%clk 0:01:52.2]} 16... Bb6 {[%clk
0:02:01.4]} 17. Na4 {[%clk 0:01:34.3]} 17... Qh4 {[%clk 0:01:52]} 18. Qg4 {[%clk
0:00:16.8]} 18... Qxg4+ {[%clk 0:01:47.6]} 19. hxg4 {[%clk 0:00:17.7]} 19... Nc2
{[%clk 0:01:48.2]} 20. Bxb6 {[%clk 0:00:14.8]} 20... Nxa1 {[%clk 0:01:48.3]} 21.
Bf2 {[%clk 0:00:10.8]} 21... Nc2 {[%clk 0:01:46.3]} 22. Nc5 {[%clk 0:00:09.9]}
22... Nh6 {[%clk 0:01:26.3]} 23. Nxb7 {[%clk 0:00:07.2]} 23... Nxg4 {[%clk
0:01:20.5]} 24. Nd6+ {[%clk 0:00:07.4]} 24... Kd7 {[%clk 0:01:21.2]} 25. Bc5
{[%clk 0:00:06.5]} 25... Nce3 {[%clk 0:01:19.9]} 26. Bxe3 {[%clk 0:00:01.5]}
26... Nxe3 {[%clk 0:01:20.8]} 27. Rf3 {[%clk 0:00:01.8]} 27... Nxc4 {[%clk
0:01:20.2]} 28. Nxc4 {[%clk 0:00:02.7]} 28... Ke6 {[%clk 0:01:19.7]} 29. f5+
{[%clk 0:00:02.2]} 29... Kd5 {[%clk 0:01:19.9]} 30. b3 {[%clk 0:00:02.8]} 30...
Rad8 {[%clk 0:01:17.8]} 31. Kf2 {[%clk 0:00:03.3]} 31... Ke4 {[%clk 0:01:17.4]}
32. Ke2 {[%clk 0:00:03.3]} 32... Rd4 {[%clk 0:01:13.9]} 33. f6 {[%clk
0:00:03.3]} 33... gxf6 {[%clk 0:01:13.7]} 34. Rxf6 {[%clk 0:00:03.3]} 34... Rg8
{[%clk 0:01:13]} 35. Rxf7 {[%clk 0:00:02.8]} 35... Rg2+ {[%clk 0:01:13]} 36. Kf1
{[%clk 0:00:03.5]} 36... Rxa2 {[%clk 0:01:12.5]} 37. e6 {[%clk 0:00:02.9]} 37...
Rd1# {[%clk 0:01:12.5]} 0-1

[Event "Early-Titled-Tuesday-Blitz-March-19-2024"]
[Site "Chess.com"]
[Date "2024.03.19"]
[Round "3"]
[White "fandebobbyfischer"]
[Black "Anton_Demchenko"]
[Result "0-1"]
[WhiteElo "2688"]
[BlackElo "3015"]
[TimeControl "180+1"]
[EndTime "8:27:51 PDT"]
[Termination "Anton_Demchenko won on time"]

1. e4 {[%clk 0:03:00.9]} 1... e5 {[%clk 0:03:00.2]} 2. Nf3 {[%clk 0:03:00.8]}
2... Nc6 {[%clk 0:03:00.8]} 3. Bb5 {[%clk 0:03:01.4]} 3... a6 {[%clk 0:03:01.3]}
4. Ba4 {[%clk 0:03:01.3]} 4... Nge7 {[%clk 0:03:01.9]} 5. O-O {[%clk 0:03:01.2]}
5... Ng6 {[%clk 0:03:02.6]} 6. c3 {[%clk 0:03:01.3]} 6... d6 {[%clk 0:03:02.9]}
7. h3 {[%clk 0:03:00.8]} 7... Be7 {[%clk 0:03:02.9]} 8. d4 {[%clk 0:03:01.2]}
8... O-O {[%clk 0:03:03.5]} 9. Re1 {[%clk 0:03:01.8]} 9... Kh8 {[%clk
0:03:02.6]} 10. Bc2 {[%clk 0:03:00.3]} 10... f5 {[%clk 0:02:57.7]} 11. dxe5
{[%clk 0:02:26.7]} 11... Ngxe5 {[%clk 0:02:57.2]} 12. exf5 {[%clk 0:02:17.3]}
12... Bxf5 {[%clk 0:02:56.3]} 13. Bxf5 {[%clk 0:02:16.7]} 13... Rxf5 {[%clk
0:02:57.2]} 14. Nd4 {[%clk 0:02:16.1]} 14... Nxd4 {[%clk 0:02:53.2]} 15. cxd4
{[%clk 0:02:17]} 15... Nc6 {[%clk 0:02:53.4]} 16. Nc3 {[%clk 0:02:12.4]} 16...
Bh4 {[%clk 0:02:42]} 17. Be3 {[%clk 0:02:11.5]} 17... Qf8 {[%clk 0:02:41.5]} 18.
Rf1 {[%clk 0:02:04.6]} 18... Re8 {[%clk 0:02:40.5]} 19. Qg4 {[%clk 0:02:01.2]}
19... Bd8 {[%clk 0:02:28.4]} 20. Rae1 {[%clk 0:01:49.8]} 20... Re6 {[%clk
0:02:25]} 21. d5 {[%clk 0:01:09.5]} 21... Ne5 {[%clk 0:02:07.8]} 22. Qxf5 {[%clk
0:01:06.4]} 22... Qxf5 {[%clk 0:02:05.5]} 23. dxe6 {[%clk 0:01:07]} 23... Qxe6
{[%clk 0:01:47.2]} 24. f4 {[%clk 0:00:24.1]} 24... Nd3 {[%clk 0:01:43.9]} 25.
Re2 {[%clk 0:00:20.5]} 25... Qf7 {[%clk 0:01:35.6]} 26. Bd4 {[%clk 0:00:16.6]}
26... h6 {[%clk 0:01:29]} 27. Rf3 {[%clk 0:00:15.5]} 27... Nc5 {[%clk
0:01:25.1]} 28. Ne4 {[%clk 0:00:09.3]} 28... Qc4 {[%clk 0:01:02]} 0-1

[Event "Early-Titled-Tuesday-Blitz-March-19-2024"]
[Site "Chess.com"]
[Date "2024.03.19"]
[Round "3"]
[White "OparinGrigoriy"]
[Black "Elegance_Riks"]
[Result "1-0"]
[WhiteElo "2983"]
[BlackElo "2762"]
[TimeControl "180+1"]
[EndTime "8:27:53 PDT"]
[Termination "OparinGrigoriy won by resignation"]

1. Nc3 {[%clk 0:03:00.5]} 1... d5 {[%clk 0:02:53.4]} 2. d4 {[%clk 0:03:00.8]}
2... Nf6 {[%clk 0:02:51.1]} 3. Bf4 {[%clk 0:03:01.2]} 3... a6 {[%clk 0:02:41.4]}
4. e3 {[%clk 0:02:58.2]} 4... e6 {[%clk 0:02:41.6]} 5. g4 {[%clk 0:02:56]} 5...
Bd6 {[%clk 0:02:33.3]} 6. Qf3 {[%clk 0:02:55.5]} 6... Bb4 {[%clk 0:02:25.9]} 7.
Ne2 {[%clk 0:02:53]} 7... Ne4 {[%clk 0:02:26]} 8. a3 {[%clk 0:02:43.5]} 8...
Bxc3+ {[%clk 0:02:25.7]} 9. Nxc3 {[%clk 0:02:44.4]} 9... Nxc3 {[%clk 0:02:25.6]}
10. bxc3 {[%clk 0:02:45.3]} 10... Bd7 {[%clk 0:02:09.5]} 11. Qg3 {[%clk
0:02:37]} 11... Bb5 {[%clk 0:01:51.1]} 12. Bxc7 {[%clk 0:02:31.9]} 12... Qc8
{[%clk 0:01:51.4]} 13. Kd2 {[%clk 0:02:23.8]} 13... Bxf1 {[%clk 0:01:45.5]} 14.
Rhxf1 {[%clk 0:02:24.7]} 14... O-O {[%clk 0:01:45.1]} 15. Bxb8 {[%clk 0:02:20]}
15... Rxb8 {[%clk 0:01:44.9]} 16. Rfb1 {[%clk 0:02:20.2]} 16... b5 {[%clk
0:01:43.4]} 17. a4 {[%clk 0:02:19.2]} 17... Qc6 {[%clk 0:01:34.8]} 18. axb5
{[%clk 0:02:18.9]} 18... axb5 {[%clk 0:01:29.8]} 19. Rb3 {[%clk 0:02:11.7]}
19... Rfc8 {[%clk 0:01:27.1]} 20. Ke1 {[%clk 0:02:04.9]} 20... Rb7 {[%clk
0:01:08.9]} 21. Kf1 {[%clk 0:02:01.1]} 21... b4 {[%clk 0:01:01.2]} 22. Rab1
{[%clk 0:02:01.3]} 22... Qb5+ {[%clk 0:00:43.5]} 23. Kg2 {[%clk 0:02:01.1]}
23... Rbc7 {[%clk 0:00:43.8]} 24. Rxb4 {[%clk 0:01:58.7]} 24... Qd7 {[%clk
0:00:40.3]} 25. R1b3 {[%clk 0:01:52.1]} 25... g6 {[%clk 0:00:38.1]} 26. Rb8
{[%clk 0:01:51.8]} 26... Rxb8 {[%clk 0:00:32.2]} 27. Rxb8+ {[%clk 0:01:52.7]}
27... Rc8 {[%clk 0:00:31.5]} 28. g5 {[%clk 0:01:51.6]} 28... Qd8 {[%clk
0:00:27.6]} 29. Rb7 {[%clk 0:01:48.5]} 29... Rxc3 {[%clk 0:00:23.6]} 30. Qf4
{[%clk 0:01:46.4]} 30... Qf8 {[%clk 0:00:23.5]} 31. Rb2 {[%clk 0:01:28.3]} 31...
Rc8 {[%clk 0:00:22.8]} 32. h4 {[%clk 0:01:28.4]} 32... Qe7 {[%clk 0:00:22.6]}
33. Qf6 {[%clk 0:01:17.8]} 33... Qxf6 {[%clk 0:00:19.6]} 34. gxf6 {[%clk
0:01:18.7]} 34... Kf8 {[%clk 0:00:19.5]} 35. Kg3 {[%clk 0:01:18.2]} 35... Ke8
{[%clk 0:00:19.2]} 36. Kf4 {[%clk 0:01:17.9]} 36... h6 {[%clk 0:00:19.5]} 37.
Ke5 {[%clk 0:01:15.4]} 37... Kd7 {[%clk 0:00:15.2]} 38. Rb7+ {[%clk 0:01:15]}
38... Rc7 {[%clk 0:00:14.5]} 39. Rxc7+ {[%clk 0:01:11.3]} 39... Kxc7 {[%clk
0:00:15.4]} 40. e4 {[%clk 0:01:12]} 40... Kc6 {[%clk 0:00:14.8]} 41. exd5+
{[%clk 0:01:11.1]} 41... exd5 {[%clk 0:00:15.7]} 42. f3 {[%clk 0:01:11.3]} 1-0

[Event "Early-Titled-Tuesday-Blitz-March-19-2024"]
[Site "Chess.com"]
[Date "2024.03.19"]
[Round "3"]
[White "GolfBeforeChess"]
[Black "Muracle"]
[Result "0-1"]
[WhiteElo "2293"]
[BlackElo "2548"]
[TimeControl "180+1"]
[EndTime "8:27:57 PDT"]
[Termination "Muracle won by resignation"]

1. Nf3 {[%clk 0:03:00.9]} 1... Nf6 {[%clk 0:02:54.5]} 2. c4 {[%clk 0:03:00.7]}
2... c6 {[%clk 0:02:53.8]} 3. g3 {[%clk 0:02:57.8]} 3... d5 {[%clk 0:02:54.5]}
4. b3 {[%clk 0:02:58.1]} 4... g6 {[%clk 0:02:54.9]} 5. Bb2 {[%clk 0:02:58.3]}
5... Bg7 {[%clk 0:02:55.6]} 6. Bg2 {[%clk 0:02:58.3]} 6... O-O {[%clk
0:02:56.2]} 7. O-O {[%clk 0:02:58.4]} 7... a5 {[%clk 0:02:56.7]} 8. a3 {[%clk
0:02:55.9]} 8... a4 {[%clk 0:02:56.6]} 9. cxd5 {[%clk 0:02:54.6]} 9... cxd5
{[%clk 0:02:51.5]} 10. bxa4 {[%clk 0:02:53.3]} 10... Bd7 {[%clk 0:02:50]} 11.
Nc3 {[%clk 0:02:51.1]} 11... Ne4 {[%clk 0:02:46.5]} 12. Qb3 {[%clk 0:02:35.2]}
12... Nxc3 {[%clk 0:02:42.8]} 13. Bxc3 {[%clk 0:02:32.9]} 13... Bxc3 {[%clk
0:02:41.7]} 14. dxc3 {[%clk 0:02:23.8]} 14... e6 {[%clk 0:02:26.8]} 15. Qxb7
{[%clk 0:02:15.6]} 15... Rxa4 {[%clk 0:02:23.6]} 16. Ne5 {[%clk 0:02:12.2]}
16... Be8 {[%clk 0:02:23.7]} 17. Rfd1 {[%clk 0:02:05.4]} 17... Na6 {[%clk
0:02:18.6]} 18. c4 {[%clk 0:01:52.6]} 18... Nc5 {[%clk 0:02:07.5]} 19. Qb2
{[%clk 0:01:50.8]} 19... f6 {[%clk 0:00:47.1]} 20. Ng4 {[%clk 0:00:55.1]} 20...
Rxc4 {[%clk 0:00:43.1]} 21. Ne3 {[%clk 0:00:53.1]} 21... Na4 {[%clk 0:00:37.1]}
22. Qb7 {[%clk 0:00:35.2]} 22... Rc7 {[%clk 0:00:32.1]} 23. Qa6 {[%clk
0:00:29.2]} 23... Qc8 {[%clk 0:00:30.1]} 24. Ng4 {[%clk 0:00:15.6]} 24... Qxa6
{[%clk 0:00:27.3]} 0-1